bitfinex/quotes_BTCUSD_20230118
["timestamp","ask_amount","ask_price","bid_price","bid_amount"]
[1674033705323,3.08013738,21278.0,21277.0,0.2409061]
[1674033705579,3.51779844,21278.0,21277.0,0.2409061]
[1674033705841,3.74305133,21278.0,21277.0,0.17245354]
[1674033706101,4.33178751,21278.0,21277.0,0.17245354]
[1674033706391,4.8089892,21278.0,21277.0,0.17245354]
[1674033706642,5.05792463,21278.0,21277.0,0.17245354]
[1674033706904,4.94667219,21278.0,21277.0,0.17245354]
[1674033707161,5.21369342,21278.0,21277.0,0.17245354]
[1674033707430,4.73959125,21278.0,21277.0,0.17245354]
[1674033707698,4.45806331,21278.0,21277.0,0.17245354]
[1674033707982,2.50675265,21278.0,21277.0,0.17245354]
[1674033708233,1.78082623,21278.0,21277.0,0.56465044]
[1674033709261,1.70592623,21278.0,21277.0,0.56465044]
[1674033710118,1.53592623,21278.0,21277.0,0.56365044]
[1674033710374,1.7404938,21278.0,21277.0,0.17245354]
[1674033710648,1.7370938,21278.0,21277.0,0.17145354]
[1674033710914,2.18365084,21278.0,21277.0,0.17245354]
[1674033711175,2.59588717,21278.0,21277.0,0.17245354]
[1674033711445,2.29588717,21278.0,21277.0,0.17245354]
[1674033711715,2.59669992,21278.0,21277.0,0.17245354]
[1674033712000,2.76505906,21278.0,21277.0,0.17245354]
[1674033712257,2.59669992,21278.0,21277.0,0.17245354]
[1674033714147,2.46505906,21278.0,21277.0,0.17245354]
[1674033714442,2.29669992,21278.0,21277.0,0.17245354]
[1674033714700,2.76505906,21278.0,21277.0,0.17245354]
[1674033714955,2.59669992,21278.0,21277.0,0.17245354]
[1674033715210,2.29669992,21278.0,21277.0,0.17245354]
[1674033715480,2.18446359,21278.0,21277.0,0.17245354]
[1674033715774,2.29669992,21278.0,21277.0,0.17245354]
[1674033716817,2.46505906,21278.0,21277.0,0.17245354]
[1674033717245,1.8945217,21278.0,21277.0,0.56465044]
[1674033717248,1.61392623,21278.0,21277.0,0.56465044]
[1674033719056,1.6138661,21278.0,21277.0,0.56465044]
[1674033720866,1.61467885,21278.0,21277.0,0.56465044]
[1674033722417,1.34684487,21278.0,21277.0,0.56465044]
[1674033723197,0.078,21278.0,21277.0,0.56465044]
[1674033724305,0.322456,21278.0,21277.0,0.56365044]
[1674033724569,0.329456,21278.0,21277.0,0.58402537]
[1674033725062,0.469948,21279.0,21277.0,0.56402537]
[1674033725334,0.007,21278.0,21277.0,0.58402537]
[1674033725847,0.312835,21278.0,21277.0,0.19182847]
[1674033726141,0.30664775,21278.0,21277.0,0.56365044]
[1674033726359,0.30664775,21278.0,21277.0,0.58365044]
[1674033726360,0.305835,21278.0,21277.0,0.58365044]
[1674033726883,0.305835,21278.0,21277.0,0.56365044]
[1674033727130,0.351236,21278.0,21277.0,0.58365044]
[1674033727409,0.007,21278.0,21277.0,0.58365044]
[1674033728944,0.31850275,21278.0,21277.0,0.58365044]
[1674033729739,1.25843875,21278.0,21277.0,0.58365044]
[1674033730032,1.257626,21278.0,21277.0,0.58365044]
[1674033732110,1.257626,21278.0,21277.0,0.19145354]
[1674033732382,1.257626,21278.0,21277.0,0.58365044]
[1674033732863,1.257626,21278.0,21277.0,0.19145354]
[1674033733121,1.257626,21278.0,21277.0,0.58365044]
[1674033733630,1.257626,21278.0,21277.0,0.19145354]
[1674033734168,1.257626,21278.0,21277.0,0.58365044]
[1674033734682,0.31769,21278.0,21277.0,0.58365044]
[1674033736920,0.31769,21278.0,21277.0,0.19145354]
[1674033737168,0.31769,21278.0,21277.0,0.58365044]
[1674033737737,0.59182642,21278.0,21277.0,0.58365044]
[1674033737984,1.53176242,21278.0,21277.0,0.58365044]
[1674033739313,1.53257517,21278.0,21277.0,0.58365044]
[1674033740063,0.31769,21278.0,21277.0,0.58357325]
[1674033743667,0.787658,21278.0,21277.0,0.58357325]
[1674033743881,0.787658,21278.0,21277.0,0.19137635]
[1674033744204,0.787658,21278.0,21277.0,0.58357325]
[1674033745233,0.31769,21278.0,21277.0,0.58357325]
[1674033745555,0.007,21278.0,21277.0,0.65867325]
[1674033745995,0.007,21278.0,21277.0,0.58357325]
[1674033746250,0.007,21278.0,21277.0,0.19137635]
[1674033746500,0.007,21278.0,21277.0,0.58357325]
[1674033746760,0.328132,21278.0,21277.0,0.58357325]
[1674033748850,0.328132,21278.0,21277.0,0.58504015]
[1674033749615,0.328132,21278.0,21277.0,0.58357325]
[1674033749876,0.32894475,21278.0,21277.0,0.58357325]
[1674033750141,0.328132,21278.0,21277.0,0.19137635]
[1674033750401,0.7981,21278.0,21277.0,0.58357325]
[1674033750694,0.79891275,21278.0,21277.0,0.58357325]
[1674033750938,1.41888075,21278.0,21277.0,0.58357325]
[1674033751178,1.268068,21278.0,21277.0,0.58357325]
[1674033751684,1.26888075,21278.0,21277.0,0.58357325]
[1674033752493,2.61215544,21278.0,21277.0,0.19137635]
[1674033752753,2.89359265,21278.0,21277.0,0.19137635]
[1674033753006,3.33071993,21278.0,21277.0,0.19137635]
[1674033754049,3.10623328,21278.0,21277.0,0.19137635]
[1674033754305,3.33135422,21278.0,21277.0,0.19137635]
[1674033754574,3.10623328,21278.0,21277.0,0.19137635]
[1674033755086,3.12479607,21278.0,21277.0,0.19137635]
[1674033755349,2.66909734,21278.0,21277.0,0.19137635]
[1674033755964,2.68766879,21278.0,21277.0,0.19137635]
[1674033756167,2.96910004,21278.0,21277.0,0.19137635]
[1674033756441,4.82130004,21278.0,21277.0,0.19137635]
[1674033756691,4.53986879,21278.0,21277.0,0.19137635]
[1674033756944,4.83986879,21278.0,21277.0,0.19137635]
[1674033757209,4.53986879,21278.0,21277.0,0.19137635]
[1674033757467,4.93515109,21278.0,21277.0,0.17137635]
[1674033757725,4.93515109,21278.0,21277.0,0.57057325]
[1674033757726,4.83190423,21278.0,21277.0,0.57057325]
[1674033757979,4.82290423,21278.0,21277.0,0.56357325]
[1674033758236,4.66303842,21278.0,21277.0,0.57057325]
[1674033758556,4.83190362,21278.0,21277.0,0.57057325]
[1674033758786,4.60674921,21278.0,21277.0,0.57057325]
[1674033759026,3.53483778,21278.0,21277.0,0.57057325]
[1674033759307,3.422268,21278.0,21277.0,0.57057325]
[1674033759562,3.53483778,21278.0,21277.0,0.57057325]
[1674033759834,3.70370298,21278.0,21277.0,0.57057325]
[1674033760332,3.70370298,21278.0,21277.0,0.56357325]
[1674033760333,3.52583778,21278.0,21277.0,0.56357325]
[1674033760587,3.53383778,21278.0,21277.0,0.57057325]
[1674033760848,3.05586978,21278.0,21277.0,0.56348071]
[1674033761137,3.05586978,21278.0,21277.0,0.57048071]
[1674033761138,3.53383778,21278.0,21277.0,0.57048071]
[1674033761374,3.52583778,21278.0,21277.0,0.56348071]
[1674033761638,3.53383778,21278.0,21277.0,0.57048071]
[1674033762163,4.75543974,21278.0,21277.0,0.57048071]
[1674033762433,4.75625249,21278.0,21277.0,0.57048071]
[1674033762708,3.53385183,21278.0,21277.0,0.57048071]
[1674033762948,3.70271703,21278.0,21277.0,0.57048071]
[1674033763464,3.421268,21278.0,21277.0,0.57048071]
[1674033763768,3.42208075,21278.0,21277.0,0.57048071]
[1674033764269,3.42208075,21278.0,21277.0,0.56348071]
[1674033764525,3.41408075,21278.0,21277.0,0.56348071]
[1674033764788,3.42108075,21278.0,21277.0,0.56348071]
[1674033765093,3.42108075,21278.0,21277.0,0.56848071]
[1674033765313,3.427268,21278.0,21277.0,0.56848071]
[1674033765829,2.59991583,21278.0,21277.0,0.56848071]
[1674033766088,2.487332,21278.0,21277.0,0.56848071]
[1674033767393,2.487332,21278.0,21277.0,0.56855404]
[1674033767673,2.1662,21278.0,21277.0,0.75927999]
[1674033767921,2.1662,21278.0,21277.0,0.56855404]
[1674033769497,2.1662,21278.0,21277.0,0.56848071]
[1674033770270,2.1522,21278.0,21277.0,0.3921969]
[1674033770517,2.1532,21278.0,21277.0,0.3921969]
[1674033771045,2.1532,21278.0,21277.0,0.4631969]
[1674033772632,2.492067,21278.0,21277.0,0.4631969]
[1674033772892,2.49287975,21278.0,21277.0,0.4631969]
[1674033773146,2.492067,21278.0,21277.0,0.4631969]
[1674033773905,2.49287975,21278.0,21277.0,0.4631969]
[1674033777462,3.85469436,21278.0,21277.0,0.4631969]
[1674033777709,3.54539958,21278.0,21277.0,0.4631969]
[1674033778243,3.07543158,21278.0,21277.0,0.4631969]
[1674033778483,2.96284775,21278.0,21277.0,0.4631969]
[1674033778990,3.07543158,21278.0,21277.0,0.4631969]
[1674033779304,2.96284775,21278.0,21277.0,0.4631969]
[1674033779502,3.07543158,21278.0,21277.0,0.4631969]
[1674033779725,3.54539958,21278.0,21277.0,0.4631969]
[1674033779978,3.07543158,21278.0,21277.0,0.4631969]
[1674033781007,2.96284775,21278.0,21277.0,0.4631969]
[1674033781254,3.07543158,21278.0,21277.0,0.4631969]
[1674033781504,2.96284775,21278.0,21277.0,0.4631969]
[1674033782490,3.54953375,21278.0,21277.0,0.4631969]
[1674033782742,3.07543158,21278.0,21277.0,0.4631969]
[1674033783242,3.07543158,21278.0,21277.0,0.46313168]
[1674033786296,3.07461883,21278.0,21277.0,0.46313168]
[1674033786567,2.962035,21278.0,21277.0,0.46313168]
[1674033787085,2.492067,21278.0,21277.0,0.46313168]
[1674033787340,2.1532,21278.0,21277.0,0.46313168]
[1674033788600,2.478449,21278.0,21277.0,0.46313168]
[1674033789365,2.1532,21278.0,21277.0,0.46313168]
[1674033789895,2.474473,21278.0,21277.0,0.46313168]
[1674033790399,2.1532,21278.0,21277.0,0.46313168]
[1674033791144,2.1532,21278.0,21277.0,0.071]
[1674033791403,2.1532,21278.0,21277.0,0.46313168]
[1674033791652,2.623168,21278.0,21277.0,0.46313168]
[1674033791897,2.946739,21278.0,21277.0,0.46313168]
[1674033792154,2.94755175,21278.0,21277.0,0.46313168]
[1674033792670,3.39238282,21278.0,21277.0,0.46313168]
[1674033792927,2.94755175,21278.0,21277.0,0.46313168]
[1674033794210,3.06013558,21278.0,21277.0,0.46313168]
[1674033794696,2.47758375,21278.0,21277.0,0.46313168]
[1674033795213,2.476771,21278.0,21277.0,0.46313168]
[1674033795462,2.1532,21278.0,21277.0,0.46313168]
[1674033796232,2.47783,21278.0,21277.0,0.46313168]
[1674033796487,2.475892,21278.0,21277.0,0.46313168]
[1674033798302,3.05844383,21278.0,21277.0,0.46313168]
[1674033798780,3.05925658,21278.0,21277.0,0.46313168]
[1674033800306,3.05909201,21278.0,21277.0,0.46313168]
[1674033800576,4.16808812,21278.0,21277.0,0.46313168]
[1674033800833,3.05909201,21278.0,21277.0,0.46313168]
[1674033801353,3.99922163,21278.0,21277.0,0.46313168]
[1674033801619,3.05909201,21278.0,21277.0,0.46313168]
[1674033802383,3.05827926,21278.0,21277.0,0.46313168]
[1674033805176,3.52824726,21278.0,21277.0,0.071]
[1674033805432,3.52824726,21278.0,21277.0,0.46313168]
[1674033805670,4.4683709,21278.0,21277.0,0.46313168]
[1674033805970,4.63804885,21278.0,21277.0,0.46313168]
[1674033807161,3.69811285,21278.0,21277.0,0.46313168]
[1674033807417,2.75717646,21278.0,21277.0,0.46783168]
[1674033807675,2.58831126,21278.0,21277.0,0.46783168]
[1674033807930,2.58912401,21278.0,21277.0,0.46783168]
[1674033808952,2.58831126,21278.0,21277.0,0.46783168]
[1674033809208,2.15303543,21278.0,21277.0,0.46783168]
[1674033809436,2.46907118,21278.0,21277.0,0.46783168]
[1674033809658,2.46825843,21278.0,21277.0,0.46783168]
[1674033809938,2.15303543,21278.0,21277.0,0.46783168]
[1674033810724,2.49241043,21278.0,21277.0,0.46783168]
[1674033812050,2.47216243,21278.0,21277.0,0.46783168]
[1674033813161,2.47297518,21278.0,21277.0,0.46783168]
[1674033813418,2.58555901,21278.0,21277.0,0.46783168]
[1674033813692,3.6945436,21278.0,21277.0,0.46783168]
[1674033814228,4.1645116,21278.0,21277.0,0.46783168]
[1674033814496,4.05192777,21278.0,21277.0,0.46783168]
[1674033814759,4.52189577,21278.0,21277.0,0.46783168]
[1674033815019,4.74697843,21278.0,21277.0,0.46783168]
[1674033815280,4.74616568,21278.0,21277.0,0.46783168]
[1674033815545,4.52101127,21278.0,21277.0,0.46783168]
[1674033815802,3.69379522,21278.0,21277.0,0.46783168]
[1674033816059,2.47209068,21278.0,21277.0,0.46783168]
[1674033816361,2.58481063,21278.0,21277.0,0.46783168]
[1674033816895,3.52492463,21278.0,21277.0,0.46783168]
[1674033817412,3.69378983,21278.0,21277.0,0.46783168]
[1674033817748,4.16375783,21278.0,21277.0,0.46783168]
[1674033818007,4.16457058,21278.0,21277.0,0.46783168]
[1674033818533,4.16457462,21278.0,21277.0,0.46783168]
[1674033818797,4.05185063,21278.0,21277.0,0.46783168]
[1674033819322,4.27700504,21278.0,21277.0,0.70783168]
[1674033819584,4.88673232,21278.0,21277.0,0.70783168]
[1674033820098,4.88673232,21278.0,21277.0,0.3157]
[1674033820376,4.88573232,21278.0,21277.0,0.3157]
[1674033820654,4.97663543,21278.0,21277.0,0.2447]
[1674033820919,5.30901806,21278.0,21277.0,0.2447]
[1674033821692,5.41861806,21278.0,21277.0,0.2447]
[1674033821964,5.63871495,21278.0,21277.0,0.2517]
[1674033822224,5.62771495,21278.0,21277.0,0.2447]
[1674033822484,5.63871495,21278.0,21277.0,0.2517]
[1674033822740,5.33871495,21278.0,21277.0,0.2517]
[1674033823221,5.84050215,21278.0,21277.0,0.2517]
[1674033823224,5.20277749,21278.0,21277.0,0.2517]
[1674033823472,5.00099029,21278.0,21277.0,0.2517]
[1674033824233,5.28254704,21278.0,21277.0,0.2517]
[1674033824511,5.62252394,21278.0,21277.0,0.2517]
[1674033824747,5.62252465,21278.0,21277.0,0.2517]
[1674033825022,5.39728603,21278.0,21277.0,0.2517]
[1674033826047,5.72415797,21278.0,21277.0,0.2517]
[1674033826297,5.44260122,21278.0,21277.0,0.2517]
[1674033826546,5.74260122,21278.0,21277.0,0.2517]
[1674033827069,5.44260122,21278.0,21277.0,0.2517]
[1674033827565,5.74260122,21278.0,21277.0,0.2517]
[1674033828364,5.44260122,21278.0,21277.0,0.2517]
[1674033828623,5.11572928,21278.0,21277.0,0.2517]
[1674033829119,5.41572928,21278.0,21277.0,0.2517]
[1674033829378,5.11572928,21278.0,21277.0,0.2517]
[1674033829644,5.41572928,21278.0,21277.0,0.2517]
[1674033829896,5.88983145,21278.0,21277.0,0.2517]
[1674033830157,7.57925255,21278.0,21277.0,0.2517]
[1674033830417,6.51782555,21278.0,21277.0,0.2517]
[1674033830677,6.51782555,21278.0,21277.0,0.22261461]
[1674033830933,7.90189614,21278.0,21277.0,0.22261461]
[1674033831184,8.3498881,21278.0,21277.0,0.22261461]
[1674033831461,8.41451648,21278.0,21277.0,0.22261461]
[1674033831720,8.06164893,21278.0,21277.0,0.22261461]
[1674033832285,6.99502724,21278.0,21277.0,0.22261461]
[1674033832538,7.69502725,21278.0,21277.0,0.22261461]
[1674033832799,8.66323937,21278.0,21277.0,0.22261461]
[1674033833056,9.12464748,21278.0,21277.0,0.22261461]
[1674033833653,8.4246617,21278.0,21277.0,0.22261461]
[1674033833910,5.31460389,21278.0,21277.0,0.41334056]
[1674033834172,5.595768,21278.0,21277.0,0.22261461]
[1674033834443,5.59573554,21278.0,21277.0,0.22261461]
[1674033834704,5.31460389,21278.0,21277.0,0.22261461]
[1674033834958,5.54870479,21278.0,21277.0,0.22261461]
[1674033835223,5.77360286,21278.0,21277.0,0.22261461]
[1674033835497,5.62952074,21278.0,21277.0,0.22261461]
[1674033835757,5.54682397,21278.0,21277.0,0.22261461]
[1674033836882,5.77172636,21278.0,21277.0,0.22261461]
[1674033837686,5.62952622,21278.0,21277.0,0.22261461]
[1674033837946,5.7419845,21278.0,21277.0,0.22261461]
[1674033838208,5.7717231,21278.0,21277.0,0.22261461]
[1674033838752,5.54682071,21278.0,21277.0,0.22261461]
[1674033839016,5.77172767,21278.0,21277.0,0.22261461]
[1674033839268,5.54682071,21278.0,21277.0,0.22261461]
[1674033839553,5.26569076,21278.0,21277.0,0.22261461]
[1674033840366,5.54682205,21278.0,21277.0,0.22261461]
[1674033843538,5.54682205,21278.0,21277.0,0.21561461]
[1674033843539,5.53582205,21278.0,21277.0,0.21561461]
[1674033843791,5.62082205,21278.0,21277.0,0.21661461]
[1674033844081,5.50962205,21278.0,21277.0,0.21661461]
[1674033844355,5.50962205,21278.0,21275.0,0.39213168]
[1674033844626,0.11245176,21276.0,21275.0,0.32371149]
[1674033844879,1.05247776,21276.0,21275.0,0.32371149]
[1674033845171,1.37603176,21276.0,21275.0,0.32371149]
[1674033845979,1.46203176,21276.0,21275.0,0.32371149]
[1674033846714,1.6307094,21276.0,21275.0,0.32371149]
[1674033847242,3.01067896,21276.0,21275.0,0.32371149]
[1674033847504,2.84200132,21276.0,21275.0,0.32371149]
[1674033848029,1.90197532,21276.0,21275.0,0.32371149]
[1674033848289,3.01070485,21276.0,21275.0,0.32371149]
[1674033848513,2.87208796,21276.0,21275.0,0.32371149]
[1674033848779,2.84200132,21276.0,21275.0,0.32371149]
[1674033849027,2.87208373,21276.0,21275.0,0.32371149]
[1674033849538,3.15321502,21276.0,21275.0,0.32371149]
[1674033849796,3.64158231,21276.0,21273.0,0.32427754]
[1674033850059,2.23782784,21276.0,21275.0,0.16]
[1674033850308,3.91724978,21276.0,21275.0,0.16]
[1674033850560,3.83124949,21276.0,21275.0,0.16]
[1674033851082,3.55000035,21276.0,21275.0,0.16]
[1674033851591,3.63600035,21276.0,21275.0,0.16]
[1674033851848,3.55000035,21276.0,21275.0,0.16]
[1674033852148,3.80960237,21276.0,21275.0,0.16]
[1674033852376,4.30713263,21276.0,21275.0,0.14279609]
[1674033852655,4.60252456,21276.0,21275.0,0.14279609]
[1674033852912,4.02260097,21276.0,21275.0,0.14279609]
[1674033853179,4.31020812,21276.0,21275.0,0.14279609]
[1674033853450,4.36090049,21276.0,21275.0,0.14279609]
[1674033853700,4.02341372,21276.0,21275.0,0.14279609]
[1674033853959,4.31108143,21276.0,21275.0,0.14279609]
[1674033854979,4.72341373,21276.0,21275.0,0.14279609]
[1674033855235,5.78094534,21276.0,21275.0,0.14279609]
[1674033855493,6.07031425,21276.0,21275.0,0.14279609]
[1674033855826,5.67405669,21276.0,21275.0,0.14279609]
[1674033856057,5.20141197,21276.0,21275.0,0.14279609]
[1674033856572,4.50141196,21276.0,21275.0,0.14279609]
[1674033856823,3.83831196,21276.0,21275.0,0.14279609]
[1674033857146,4.04887978,21276.0,21275.0,0.14279609]
[1674033857604,4.26707259,21276.0,21275.0,0.14279609]
[1674033857852,4.04887978,21276.0,21275.0,0.14279609]
[1674033858112,4.04887978,21276.0,21275.0,0.14218061]
[1674033858375,3.83833103,21276.0,21275.0,0.14218061]
[1674033860420,3.83833103,21276.0,21274.0,0.32371149]
[1674033860682,2.78315479,21275.0,21274.0,0.32371149]
[1674033860956,3.98696803,21275.0,21274.0,0.32371149]
[1674033861190,4.1972802,21275.0,21274.0,0.32371149]
[1674033862512,3.42317803,21275.0,21274.0,0.32371149]
[1674033862782,2.74372499,21275.0,21274.0,0.32371149]
[1674033863044,2.82972499,21275.0,21274.0,0.32471149]
[1674033863515,2.50259299,21275.0,21274.0,0.32471149]
[1674033863834,2.83443199,21275.0,21274.0,0.32471149]
[1674033864074,2.50259299,21275.0,21274.0,0.32471149]
[1674033864331,2.67183286,21275.0,21274.0,0.32471149]
[1674033864588,2.81322278,21275.0,21274.0,0.32471149]
[1674033866714,2.67184829,21275.0,21274.0,0.32471149]
[1674033867230,2.67184815,21275.0,21274.0,0.32471149]
[1674033867996,2.36034915,21275.0,21274.0,0.32471149]
[1674033868278,2.68196915,21275.0,21274.0,0.32471149]
[1674033868534,2.51395284,21275.0,21274.0,0.32471149]
[1674033868854,2.68279572,21275.0,21274.0,0.32471149]
[1674033869061,2.68198297,21275.0,21274.0,0.32471149]
[1674033869320,2.51314009,21275.0,21274.0,0.32471149]
[1674033869596,2.68280342,21275.0,21274.0,0.32471149]
[1674033869860,2.45693185,21275.0,21274.0,0.32471149]
[1674033870159,2.24787809,21275.0,21274.0,0.32471149]
[1674033870382,2.57759709,21275.0,21274.0,0.32471149]
[1674033870651,2.24787809,21275.0,21274.0,0.32471149]
[1674033870904,2.44523385,21275.0,21274.0,0.46471149]
[1674033871406,2.13531185,21275.0,21274.0,0.46471149]
[1674033871657,2.4676866,21275.0,21274.0,0.46471149]
[1674033871879,2.1361246,21275.0,21274.0,0.46471149]
[1674033872128,2.4607086,21275.0,21274.0,0.46471149]
[1674033872383,2.4698136,21275.0,21274.0,0.46471149]
[1674033872631,2.1361246,21275.0,21274.0,0.46471149]
[1674033872890,2.4567996,21275.0,21274.0,0.46471149]
[1674033873137,2.45598685,21275.0,21274.0,0.46471149]
[1674033873391,2.24786828,21275.0,21274.0,0.46471149]
[1674033873637,0.66859143,21275.0,21274.0,0.46471149]
[1674033874395,0.83744201,21275.0,21274.0,0.46471149]
[1674033875459,0.83825476,21275.0,21274.0,0.46471149]
[1674033875686,2.24860811,21275.0,21274.0,0.46471149]
[1674033875937,2.46894468,21275.0,21274.0,0.46471149]
[1674033876193,2.6940035,21275.0,21274.0,0.46471149]
[1674033876453,2.6919425,21275.0,21274.0,0.46471149]
[1674033876707,2.53849243,21275.0,21274.0,0.46471149]
[1674033876959,2.97573217,21275.0,21274.0,0.46471149]
[1674033877481,2.69430385,21275.0,21274.0,0.46471149]
[1674033880620,2.99430385,21275.0,21274.0,0.46471149]
[1674033880621,2.69430385,21275.0,21274.0,0.46471149]
[1674033880882,2.60196719,21275.0,21274.0,0.46471149]
[1674033881144,2.51622158,21275.0,21274.0,0.46471149]
[1674033881398,2.55867382,21275.0,21274.0,0.46471149]
[1674033881688,2.13525616,21275.0,21274.0,0.46471149]
[1674033881914,1.30753119,21275.0,21274.0,0.46471149]
[1674033882984,1.30753119,21275.0,21274.0,0.4646222]
[1674033883262,2.24783633,21275.0,21274.0,0.4646222]
[1674033883567,1.13865437,21275.0,21274.0,0.4646222]
[1674033884620,1.30834394,21275.0,21274.0,0.4646222]
[1674033884878,2.36124985,21275.0,21274.0,0.4646222]
[1674033885140,2.68048785,21275.0,21274.0,0.4646222]
[1674033885408,2.68051314,21275.0,21274.0,0.4646222]
[1674033885986,2.8223923,21275.0,21274.0,0.4646222]
[1674033886249,2.5031543,21275.0,21274.0,0.4646222]
[1674033886506,2.83189955,21275.0,21274.0,0.4646222]
[1674033886775,2.55042205,21275.0,21274.0,0.4646222]
[1674033887039,2.83189955,21275.0,21274.0,0.4646222]
[1674033887299,3.04635565,21275.0,21274.0,0.4646222]
[1674033887565,2.76487815,21275.0,21274.0,0.4646222]
[1674033887822,2.32606357,21275.0,21274.0,0.4646222]
[1674033889372,2.60761144,21275.0,21274.0,0.4646222]
[1674033889897,2.32606357,21275.0,21274.0,0.4646222]
[1674033890129,2.60761188,21275.0,21274.0,0.4646222]
[1674033890384,2.32606357,21275.0,21274.0,0.4646222]
[1674033891701,2.77767829,21275.0,21274.0,0.4646222]
[1674033891977,2.32606357,21275.0,21274.0,0.4646222]
[1674033893861,2.79609857,21275.0,21274.0,0.4646222]
[1674033894373,2.32606357,21275.0,21274.0,0.4646222]
[1674033895491,2.6637024,21275.0,21274.0,0.4646222]
[1674033896008,2.9637024,21275.0,21274.0,0.4646222]
[1674033896608,2.80016574,21275.0,21274.0,0.4646222]
[1674033897131,2.32606357,21275.0,21274.0,0.4646222]
[1674033897928,2.32525082,21275.0,21274.0,0.4646222]
[1674033898190,2.60689572,21275.0,21274.0,0.4646222]
[1674033898717,2.32525082,21275.0,21274.0,0.4646222]
[1674033899234,2.66288965,21275.0,21274.0,0.4646222]
[1674033899488,3.13699182,21275.0,21274.0,0.4646222]
[1674033899740,3.43699182,21275.0,21274.0,0.4646222]
[1674033900513,3.13699182,21275.0,21274.0,0.4646222]
[1674033901045,2.66288965,21275.0,21274.0,0.4646222]
[1674033901433,2.6637024,21275.0,21274.0,0.4646222]
[1674033901654,2.32606357,21275.0,21274.0,0.4646222]
[1674033902163,2.6637024,21275.0,21274.0,0.4646222]
[1674033904218,2.6637024,21275.0,21274.0,0.46454932]
[1674033905260,2.32606357,21275.0,21274.0,0.46454932]
[1674033905841,2.32525082,21275.0,21274.0,0.46454932]
[1674033906106,2.32525082,21275.0,21274.0,0.57504932]
[1674033906107,2.8323891,21275.0,21274.0,0.57504932]
[1674033906367,2.5028311,21275.0,21274.0,0.57504932]
[1674033906768,2.22108758,21275.0,21274.0,0.57504932]
[1674033906981,2.27743634,21275.0,21274.0,0.57504932]
[1674033907251,2.50282878,21275.0,21274.0,0.57504932]
[1674033908356,2.36082115,21275.0,21274.0,0.57504932]
[1674033908589,2.50403987,21275.0,21274.0,0.57504932]
[1674033909245,2.50485262,21275.0,21274.0,0.57504932]
[1674033909469,2.27946018,21275.0,21274.0,0.57504932]
[1674033912880,2.27946018,21275.0,21274.0,0.46454932]
[1674033913418,1.99771666,21275.0,21274.0,0.46454932]
[1674033914205,2.32742766,21275.0,21274.0,0.46454932]
[1674033914544,2.31432466,21275.0,21274.0,0.46454932]
[1674033915079,1.99771666,21275.0,21274.0,0.46454932]
[1674033915596,2.32250866,21275.0,21274.0,0.46454932]
[1674033916108,2.45322049,21275.0,21274.0,0.46454932]
[1674033916361,2.79085932,21275.0,21274.0,0.46454932]
[1674033916614,2.45322049,21275.0,21274.0,0.46454932]
[1674033917666,2.79085932,21275.0,21274.0,0.46454932]
[1674033917920,2.32169591,21275.0,21274.0,0.46454932]
[1674033919424,2.65933474,21275.0,21274.0,0.46454932]
[1674033919927,2.95933474,21275.0,21274.0,0.46454932]
[1674033921010,2.65933474,21275.0,21274.0,0.46454932]
[1674033921497,2.66014749,21275.0,21274.0,0.46454932]
[1674033921753,3.05569545,21275.0,21274.0,0.46454932]
[1674033922316,2.66014749,21275.0,21274.0,0.46454932]
[1674033922775,2.96014749,21275.0,21274.0,0.46454932]
[1674033923041,3.07034749,21275.0,21274.0,0.46454932]
[1674033923302,3.33824131,21275.0,21274.0,0.14092712]
[1674033923590,4.53203346,21275.0,21274.0,0.14092712]
[1674033924082,4.53203346,21275.0,21274.0,0.14081438]
[1674033924900,3.67885366,21275.0,21274.0,0.14081438]
[1674033925917,4.05793129,21275.0,21274.0,0.14081438]
[1674033927706,3.67885366,21275.0,21274.0,0.14081438]
[1674033927973,3.92885366,21275.0,21274.0,0.14081438]
[1674033928481,4.30793129,21275.0,21274.0,0.14081438]
[1674033928983,4.78203346,21275.0,21274.0,0.14081438]
[1674033929236,5.47042974,21275.0,21274.0,0.14081438]
[1674033929746,5.84950737,21275.0,21274.0,0.14081438]
[1674033930257,5.84950737,21275.0,21274.0,0.12624857]
[1674033930514,5.95950737,21275.0,21274.0,0.12624857]
[1674033930989,5.70950737,21275.0,21274.0,0.12624857]
[1674033931742,6.40950738,21275.0,21274.0,0.12624857]
[1674033932258,6.40950738,21275.0,21273.0,0.00056605]
[1674033932488,3.88809764,21274.0,21273.0,0.00056605]
[1674033932750,5.04731164,21274.0,21273.0,0.00056605]
[1674033933304,0.12410995,21273.0,21272.0,0.0039709]
[1674033933573,3.36464851,21273.0,21272.0,0.0039709]
[1674033933879,4.31801372,21273.0,21272.0,0.0039709]
[1674033934088,5.38541607,21273.0,21272.0,7.09e-05]
[1674033934348,0.27752,21272.0,21270.0,0.00464557]
[1674033934604,3.34179755,21271.0,21270.0,0.00464557]
[1674033934865,4.50949459,21271.0,21270.0,0.00464557]
[1674033935394,5.0991946,21271.0,21270.0,0.00464557]
[1674033935646,4.76131661,21271.0,21270.0,0.00464557]
[1674033935910,5.07129144,21271.0,21270.0,0.00464557]
[1674033936163,5.8832716,21271.0,21270.0,0.00464557]
[1674033936421,5.07129144,21271.0,21270.0,0.00464557]
[1674033936682,5.50116943,21271.0,21270.0,0.00464557]
[1674033936952,5.16329144,21271.0,21270.0,0.00464557]
[1674033937209,5.07129144,21271.0,21270.0,0.00464557]
[1674033937434,5.63739361,21271.0,21270.0,0.00464557]
[1674033937786,5.63820636,21271.0,21270.0,0.00464557]
[1674033939825,5.97608435,21271.0,21270.0,0.00464557]
[1674033940446,6.29787106,21271.0,21270.0,0.00418102]
[1674033940662,5.95999307,21271.0,21270.0,0.00418102]
[1674033940932,6.17945711,21271.0,21270.0,0.00418102]
[1674033941200,5.70535494,21271.0,21270.0,0.00418102]
[1674033941457,5.3678645,21271.0,21270.0,0.00418102]
[1674033941977,5.70535494,21271.0,21270.0,0.00418102]
[1674033942506,5.7209357,21271.0,21270.0,0.13418102]
[1674033942768,6.19503787,21271.0,21270.0,0.13418102]
[1674033943110,5.92851296,21271.0,21270.0,0.13418102]
[1674033943292,6.14792484,21271.0,21270.0,0.13418102]
[1674033943554,6.19495389,21271.0,21270.0,0.13418102]
[1674033943833,5.27294526,21271.0,21270.0,0.45780322]
[1674033944092,5.72085172,21271.0,21270.0,0.45780322]
[1674033944353,5.36464563,21271.0,21270.0,0.45780322]
[1674033944616,6.25626232,21271.0,21270.0,0.45780322]
[1674033945116,5.91885586,21271.0,21270.0,0.45780322]
[1674033945371,5.83854667,21271.0,21270.0,0.45780322]
[1674033945629,6.16231707,21271.0,21270.0,0.45780322]
[1674033945881,5.72962402,21271.0,21270.0,0.45780322]
[1674033946137,6.03392568,21271.0,21270.0,0.45780322]
[1674033947201,6.25243172,21271.0,21270.0,0.45780322]
[1674033947717,0.32361898,21270.0,21268.0,5.57e-06]
[1674033947977,0.32361898,21270.0,21266.0,9.7e-06]
[1674033947978,4.8121386,21269.0,21266.0,9.7e-06]